[Event "Titled Tuesday Blitz October 12 2021"]
[White "Terry, Renato"]
[Black "Bluebaum, Matthias"]
[WhiteFideId "3803457"]
[BlackFideId "24651516"]
[WhiteElo "2577"]
[BlackElo "2681"]
[Result "0-1"]
[Round "09"]
[TimeControl "180+1"]
[Date "2021.10.12"]
[WhiteClock "0:00:01"]
[BlackClock "0:00:16"]

1. d4 {[%clk 0:03:00]}  Nf6 {[%clk 0:02:59]} 2. Bg5 {[%clk 0:03:01]}  d5 {[%clk 0:02:59]} 3. Bxf6 {[%clk 0:03:01]}  gxf6 {[%clk 0:03:00]} 4. e3 {[%clk 0:03:02]}  c5 {[%clk 0:03:01]} 5. c3 {[%clk 0:03:02]}  Nc6 {[%clk 0:03:00]} 6. Nf3 {[%clk 0:03:00]}  Qb6 {[%clk 0:02:59]} 7. Qb3 {[%clk 0:03:00]}  c4 {[%clk 0:02:55]} 8. Qc2 {[%clk 0:02:57]}  Bg4 {[%clk 0:02:33]} 9. Nbd2 {[%clk 0:02:53]}  e5 {[%clk 0:02:28]} 10. g3 {[%clk 0:02:30]}  Bh5 {[%clk 0:02:22]} 11. Nh4 {[%clk 0:02:29]}  Bg6 {[%clk 0:02:13]} 12. Nxg6 {[%clk 0:02:22]}  hxg6 {[%clk 0:02:14]} 13. Bg2 {[%clk 0:02:16]}  e4 {[%clk 0:02:01]} 14. b3 {[%clk 0:02:15]}  cxb3 {[%clk 0:02:01]} 15. Qxb3 {[%clk 0:02:02]}  Qxb3 {[%clk 0:02:01]} 16. axb3 {[%clk 0:02:02]}  f5 {[%clk 0:02:01]} 17. h4 {[%clk 0:01:50]}  Kd7 {[%clk 0:02:00]} 18. Ke2 {[%clk 0:01:35]}  Bd6 {[%clk 0:01:58]} 19. Ra2 {[%clk 0:01:27]}  a5 {[%clk 0:01:54]} 20. Rha1 {[%clk 0:01:24]}  b5 {[%clk 0:01:54]} 21. Kd1 {[%clk 0:01:22]}  Rhb8 {[%clk 0:01:47]} 22. Bf1 {[%clk 0:01:20]}  Ke6 {[%clk 0:01:41]} 23. Be2 {[%clk 0:01:20]}  f6 {[%clk 0:01:30]} 24. Nb1 {[%clk 0:01:14]}  g5 {[%clk 0:01:29]} 25. b4 {[%clk 0:00:56]}  a4 {[%clk 0:01:19]} 26. Na3 {[%clk 0:00:55]}  Na7 {[%clk 0:01:19]} 27. Kd2 {[%clk 0:00:46]}  f4 {[%clk 0:01:17]} 28. gxf4 {[%clk 0:00:40]}  gxf4 {[%clk 0:01:18]} 29. Rh1 {[%clk 0:00:40]}  f5 {[%clk 0:01:11]} 30. f3 {[%clk 0:00:28]}  Rb7 {[%clk 0:01:06]} 31. fxe4 {[%clk 0:00:07]}  dxe4 {[%clk 0:01:07]} 32. exf4 {[%clk 0:00:04]}  Bxf4+ {[%clk 0:01:08]} 33. Kc2 {[%clk 0:00:05]}  Rc8 {[%clk 0:01:08]} 34. Raa1 {[%clk 0:00:03]}  Nc6 {[%clk 0:00:58]} 35. Kb2 {[%clk 0:00:03]}  Na7 {[%clk 0:00:54]} 36. Rag1 {[%clk 0:00:02]}  Bd2 {[%clk 0:00:53]} 37. Nb1 {[%clk 0:00:01]}  Be3 {[%clk 0:00:49]} 38. Rg6+ {[%clk 0:00:02]}  Kf7 {[%clk 0:00:50]} 39. h5 {[%clk 0:00:02]}  Rbc7 {[%clk 0:00:46]} 40. Rf1 {[%clk 0:00:01]}  f4 {[%clk 0:00:46]} 41. Rg4 {[%clk 0:00:02]}  Re7 {[%clk 0:00:34]} 42. Rgxf4+ {[%clk 0:00:02]}  Bxf4 {[%clk 0:00:35]} 43. Rxf4+ {[%clk 0:00:03]}  Kg7 {[%clk 0:00:36]} 44. Rf5 {[%clk 0:00:01]}  Rf8 {[%clk 0:00:35]} 45. Rg5+ {[%clk 0:00:01]}  Kh6 {[%clk 0:00:35]} 46. Rg6+ {[%clk 0:00:01]}  Kh7 {[%clk 0:00:36]} 47. Rg2 {[%clk 0:00:02]}  e3 {[%clk 0:00:35]} 48. Bd3+ {[%clk 0:00:02]}  Kh6 {[%clk 0:00:35]} 49. Rg6+ {[%clk 0:00:02]}  Kxh5 {[%clk 0:00:36]} 50. Rg1 {[%clk 0:00:02]}  Kh4 {[%clk 0:00:33]} 51. Kc1 {[%clk 0:00:02]}  Rf2 {[%clk 0:00:28]} 52. Re1 {[%clk 0:00:02]}  Kg3 {[%clk 0:00:28]} 53. Na3 {[%clk 0:00:02]}  Kf3 {[%clk 0:00:24]} 54. Nc2 {[%clk 0:00:02]}  Re8 {[%clk 0:00:19]} 55. d5 {[%clk 0:00:01]}  e2 {[%clk 0:00:17]} 56. Kd2 {[%clk 0:00:01]}  Nc8 {[%clk 0:00:17]} 57. Nd4+ {[%clk 0:00:01]}  Kf4 {[%clk 0:00:18]} 58. Bxb5 {[%clk 0:00:01]}  Re5 {[%clk 0:00:16]} 59. c4 {[%clk 0:00:01]}  Nd6 {[%clk 0:00:16]} 0-1


[Site "https://www.chess.com"]

[Event "Titled Tuesday Blitz October 12 2021"]
[White "Urazayev, Arystanbek"]
[Black "Holt, Conrad"]
[WhiteFideId "13709810"]
[BlackFideId "2034387"]
[WhiteElo "2321"]
[BlackElo "2586"]
[Result "0-1"]
[Round "09"]
[TimeControl "180+1"]
[Date "2021.10.12"]
[WhiteClock "0:00:10"]
[BlackClock "0:00:11"]

1. e4 {[%clk 0:03:00]}  e6 {[%clk 0:03:00]} 2. d4 {[%clk 0:03:01]}  d5 {[%clk 0:03:00]} 3. e5 {[%clk 0:03:01]}  c5 {[%clk 0:03:00]} 4. c3 {[%clk 0:03:02]}  Nc6 {[%clk 0:03:00]} 5. Nf3 {[%clk 0:03:03]}  Bd7 {[%clk 0:03:00]} 6. Bd3 {[%clk 0:03:00]}  cxd4 {[%clk 0:02:59]} 7. O-O {[%clk 0:03:01]}  dxc3 {[%clk 0:02:52]} 8. Nxc3 {[%clk 0:03:01]}  Nge7 {[%clk 0:02:44]} 9. Re1 {[%clk 0:02:58]}  Ng6 {[%clk 0:02:40]} 10. Bg5 {[%clk 0:02:51]}  Be7 {[%clk 0:02:40]} 11. Bxe7 {[%clk 0:02:52]}  Qxe7 {[%clk 0:02:36]} 12. g3 {[%clk 0:02:51]}  O-O {[%clk 0:02:34]} 13. h4 {[%clk 0:02:51]}  f6 {[%clk 0:02:32]} 14. Bxg6 {[%clk 0:02:45]}  hxg6 {[%clk 0:02:31]} 15. Qd3 {[%clk 0:02:42]}  Qf7 {[%clk 0:02:24]} 16. Qd2 {[%clk 0:02:30]}  Rad8 {[%clk 0:01:54]} 17. Re2 {[%clk 0:02:30]}  d4 {[%clk 0:01:48]} 18. Ne4 {[%clk 0:02:30]}  Nxe5 {[%clk 0:01:44]} 19. Nxe5 {[%clk 0:02:28]}  fxe5 {[%clk 0:01:44]} 20. Ng5 {[%clk 0:02:29]}  Qf6 {[%clk 0:01:33]} 21. Rae1 {[%clk 0:02:29]}  Bc6 {[%clk 0:00:53]} 22. Rxe5 {[%clk 0:02:29]}  d3 {[%clk 0:00:52]} 23. f4 {[%clk 0:02:19]}  Rfe8 {[%clk 0:00:46]} 24. R1e3 {[%clk 0:02:15]}  Qf8 {[%clk 0:00:28]} 25. Rxd3 {[%clk 0:02:02]}  Rxd3 {[%clk 0:00:23]} 26. Qxd3 {[%clk 0:02:03]}  Qb4 {[%clk 0:00:21]} 27. b3 {[%clk 0:01:16]}  Qb6+ {[%clk 0:00:15]} 28. Qe3 {[%clk 0:01:15]}  Qd8 {[%clk 0:00:15]} 29. Kh2 {[%clk 0:01:04]}  Qd1 {[%clk 0:00:14]} 30. Qe1 {[%clk 0:01:05]}  Qc2+ {[%clk 0:00:14]} 31. Re2 {[%clk 0:01:05]}  Qd3 {[%clk 0:00:09]} 32. Qd2 {[%clk 0:00:35]}  Qb1 {[%clk 0:00:07]} 33. Re1 {[%clk 0:00:35]}  Qf5 {[%clk 0:00:08]} 34. b4 {[%clk 0:00:25]}  a6 {[%clk 0:00:07]} 35. a4 {[%clk 0:00:25]}  Bxa4 {[%clk 0:00:06]} 36. Re5 {[%clk 0:00:19]}  Qf6 {[%clk 0:00:05]} 37. Qd6 {[%clk 0:00:18]}  Bc6 {[%clk 0:00:05]} 38. Qd3 {[%clk 0:00:14]}  Rd8 {[%clk 0:00:05]} 39. Qe2 {[%clk 0:00:14]}  Re8 {[%clk 0:00:05]} 40. h5 {[%clk 0:00:14]}  gxh5 {[%clk 0:00:04]} 41. Qd3 {[%clk 0:00:14]}  g6 {[%clk 0:00:04]} 42. Nh3 {[%clk 0:00:08]}  Kg7 {[%clk 0:00:04]} 43. Ng5 {[%clk 0:00:07]}  Re7 {[%clk 0:00:04]} 44. Qe3 {[%clk 0:00:08]}  Re8 {[%clk 0:00:04]} 45. Nxe6+ {[%clk 0:00:07]}  Kg8 {[%clk 0:00:04]} 46. Ng5 {[%clk 0:00:08]}  Rxe5 {[%clk 0:00:05]} 47. fxe5 {[%clk 0:00:08]}  Qf5 {[%clk 0:00:05]} 48. e6 {[%clk 0:00:06]}  Qc2+ {[%clk 0:00:05]} 49. Kh3 {[%clk 0:00:06]}  Qg2+ {[%clk 0:00:04]} 50. Kh4 {[%clk 0:00:06]}  Qh1+ {[%clk 0:00:04]} 51. Nh3 {[%clk 0:00:07]}  Bg2 {[%clk 0:00:05]} 52. e7 {[%clk 0:00:06]}  Qxh3+ {[%clk 0:00:05]} 53. Kg5 {[%clk 0:00:06]}  Qf5+ {[%clk 0:00:05]} 54. Kh6 {[%clk 0:00:06]}  Bc6 {[%clk 0:00:05]} 55. e8=Q+ {[%clk 0:00:06]}  Bxe8 {[%clk 0:00:06]} 56. Qxe8+ {[%clk 0:00:06]}  Qf8+ {[%clk 0:00:06]} 57. Qxf8+ {[%clk 0:00:07]}  Kxf8 {[%clk 0:00:07]} 58. Kxg6 {[%clk 0:00:07]}  b6 {[%clk 0:00:07]} 59. Kf6 {[%clk 0:00:06]}  a5 {[%clk 0:00:08]} 60. bxa5 {[%clk 0:00:07]}  bxa5 {[%clk 0:00:09]} 61. Ke5 {[%clk 0:00:08]}  Kf7 {[%clk 0:00:09]} 62. Kd4 {[%clk 0:00:07]}  Kf6 {[%clk 0:00:09]} 63. Kc5 {[%clk 0:00:08]}  Kg5 {[%clk 0:00:10]} 64. Kb5 {[%clk 0:00:09]}  Kg4 {[%clk 0:00:10]} 65. Kxa5 {[%clk 0:00:10]}  Kxg3 {[%clk 0:00:11]} 0-1


[Site "https://www.chess.com"]

[Event "Titled Tuesday Blitz October 12 2021"]
[White "Weetik, Vjacheslav"]
[Black "Moroni, Luca Jr"]
[WhiteFideId "4153472"]
[BlackFideId "865834"]
[WhiteElo "2469"]
[BlackElo "2491"]
[Result "1-0"]
[Round "09"]
[TimeControl "180+1"]
[Date "2021.10.12"]
[WhiteClock "0:00:06"]
[BlackClock "0:00:01"]

1. d4 {[%clk 0:02:59]}  g6 {[%clk 0:03:00]} 2. e4 {[%clk 0:03:00]}  Bg7 {[%clk 0:03:00]} 3. Nc3 {[%clk 0:03:00]}  d6 {[%clk 0:03:01]} 4. Nf3 {[%clk 0:02:59]}  Nf6 {[%clk 0:03:01]} 5. Be2 {[%clk 0:02:59]}  O-O {[%clk 0:03:01]} 6. O-O {[%clk 0:03:00]}  a6 {[%clk 0:03:02]} 7. h3 {[%clk 0:02:55]}  b5 {[%clk 0:03:02]} 8. e5 {[%clk 0:02:55]}  Nfd7 {[%clk 0:02:58]} 9. Bf4 {[%clk 0:02:29]}  Nb6 {[%clk 0:02:53]} 10. Re1 {[%clk 0:02:24]}  Bb7 {[%clk 0:02:51]} 11. Bf1 {[%clk 0:02:13]}  Nc6 {[%clk 0:02:44]} 12. a4 {[%clk 0:02:03]}  bxa4 {[%clk 0:02:24]} 13. Nxa4 {[%clk 0:01:59]}  Nxa4 {[%clk 0:02:07]} 14. Rxa4 {[%clk 0:02:00]}  Qd7 {[%clk 0:02:03]} 15. c3 {[%clk 0:01:52]}  Nd8 {[%clk 0:01:42]} 16. Ra1 {[%clk 0:01:43]}  a5 {[%clk 0:01:40]} 17. Bg3 {[%clk 0:01:28]}  a4 {[%clk 0:01:35]} 18. Bc4 {[%clk 0:01:23]}  Ne6 {[%clk 0:01:29]} 19. Qe2 {[%clk 0:01:19]}  d5 {[%clk 0:01:14]} 20. Bd3 {[%clk 0:01:16]}  c5 {[%clk 0:01:14]} 21. Qe3 {[%clk 0:01:10]}  cxd4 {[%clk 0:01:09]} 22. Nxd4 {[%clk 0:01:10]}  Ba6 {[%clk 0:01:02]} 23. Bc2 {[%clk 0:01:03]}  Bc4 {[%clk 0:00:53]} 24. Nxe6 {[%clk 0:00:58]}  fxe6 {[%clk 0:00:54]} 25. Ra3 {[%clk 0:00:39]}  Rfb8 {[%clk 0:00:36]} 26. Rea1 {[%clk 0:00:38]}  Rxb2 {[%clk 0:00:36]} 27. Bxa4 {[%clk 0:00:37]}  Qc8 {[%clk 0:00:29]} 28. Kh2 {[%clk 0:00:20]}  Rab8 {[%clk 0:00:26]} 29. h4 {[%clk 0:00:15]}  Rb1 {[%clk 0:00:17]} 30. Bd1 {[%clk 0:00:14]}  Rxa1 {[%clk 0:00:16]} 31. Rxa1 {[%clk 0:00:15]}  h5 {[%clk 0:00:10]} 32. Bf4 {[%clk 0:00:12]}  Qf8 {[%clk 0:00:08]} 33. g4 {[%clk 0:00:12]}  Qf7 {[%clk 0:00:07]} 34. Ra7 {[%clk 0:00:09]}  Rf8 {[%clk 0:00:07]} 35. Bg3 {[%clk 0:00:10]}  hxg4 {[%clk 0:00:06]} 36. Bxg4 {[%clk 0:00:10]}  Kh7 {[%clk 0:00:06]} 37. Qg5 {[%clk 0:00:10]}  Re8 {[%clk 0:00:04]} 38. h5 {[%clk 0:00:10]}  Bh6 {[%clk 0:00:04]} 39. hxg6+ {[%clk 0:00:10]}  Qxg6 {[%clk 0:00:05]} 40. Qxg6+ {[%clk 0:00:10]}  Kxg6 {[%clk 0:00:06]} 41. Bxe6 {[%clk 0:00:10]}  Bd2 {[%clk 0:00:06]} 42. f4 {[%clk 0:00:11]}  Bxc3 {[%clk 0:00:03]} 43. f5+ {[%clk 0:00:09]}  Kg5 {[%clk 0:00:03]} 44. Bf7 {[%clk 0:00:09]}  Rh8+ {[%clk 0:00:03]} 45. Kg2 {[%clk 0:00:09]}  Bd3 {[%clk 0:00:03]} 46. Rxe7 {[%clk 0:00:07]}  Be4+ {[%clk 0:00:03]} 47. Kf2 {[%clk 0:00:07]}  Bd4+ {[%clk 0:00:03]} 48. Ke2 {[%clk 0:00:08]}  Kg4 {[%clk 0:00:04]} 49. Be1 {[%clk 0:00:07]}  Rh2+ {[%clk 0:00:03]} 50. Kd1 {[%clk 0:00:08]}  Rb2 {[%clk 0:00:02]} 51. Bd2 {[%clk 0:00:08]}  Bf3+ {[%clk 0:00:01]} 52. Kc1 {[%clk 0:00:07]}  Be4 {[%clk 0:00:02]} 53. Kd1 {[%clk 0:00:07]}  Kf3 {[%clk 0:00:01]} 54. Bh5+ {[%clk 0:00:07]}  Kf2 {[%clk 0:00:01]} 55. Rc7 {[%clk 0:00:06]} 1-0


[Site "https://www.chess.com"]

[Event "Titled Tuesday Blitz October 12 2021"]
[White "Yilmaz, Mustafa"]
[Black "Hansen, Eric"]
[WhiteFideId "6302718"]
[BlackFideId "2606771"]
[WhiteElo "2518"]
[BlackElo "2568"]
[Result "0-1"]
[Round "09"]
[TimeControl "180+1"]
[Date "2021.10.12"]
[WhiteClock "0:00:05"]
[BlackClock "0:00:09"]

1. d4 {[%clk 0:03:00]}  Nf6 {[%clk 0:02:48]} 2. c4 {[%clk 0:03:00]}  e6 {[%clk 0:02:48]} 3. Nf3 {[%clk 0:03:00]}  d5 {[%clk 0:02:46]} 4. Nc3 {[%clk 0:03:00]}  Be7 {[%clk 0:02:40]} 5. Bf4 {[%clk 0:03:00]}  O-O {[%clk 0:02:40]} 6. e3 {[%clk 0:03:00]}  Nbd7 {[%clk 0:02:37]} 7. c5 {[%clk 0:03:00]}  Nh5 {[%clk 0:02:30]} 8. Be2 {[%clk 0:03:00]}  f5 {[%clk 0:02:21]} 9. Ne5 {[%clk 0:02:10]}  Nxf4 {[%clk 0:01:54]} 10. exf4 {[%clk 0:02:11]}  Nxe5 {[%clk 0:01:54]} 11. fxe5 {[%clk 0:02:12]}  f4 {[%clk 0:01:43]} 12. O-O {[%clk 0:02:08]}  Bd7 {[%clk 0:01:40]} 13. b4 {[%clk 0:02:08]}  Be8 {[%clk 0:01:24]} 14. Bg4 {[%clk 0:02:08]}  Bf7 {[%clk 0:01:22]} 15. Qf3 {[%clk 0:01:51]}  Bg5 {[%clk 0:01:16]} 16. Ne2 {[%clk 0:01:11]}  Kh8 {[%clk 0:01:16]} 17. h4 {[%clk 0:01:05]}  Bh6 {[%clk 0:00:56]} 18. Qh3 {[%clk 0:01:05]}  Qe7 {[%clk 0:00:54]} 19. Kh2 {[%clk 0:00:57]}  Bg6 {[%clk 0:00:49]} 20. Bxe6 {[%clk 0:00:51]}  f3 {[%clk 0:00:49]} 21. gxf3 {[%clk 0:00:50]}  Bd3 {[%clk 0:00:49]} 22. Rfe1 {[%clk 0:00:50]}  Bd2 {[%clk 0:00:48]} 23. Rad1 {[%clk 0:00:39]}  Bxe1 {[%clk 0:00:41]} 24. Rxd3 {[%clk 0:00:39]}  Bxf2 {[%clk 0:00:40]} 25. Bxd5 {[%clk 0:00:38]}  Rad8 {[%clk 0:00:36]} 26. Bxb7 {[%clk 0:00:32]}  Bxd4 {[%clk 0:00:36]} 27. Nxd4 {[%clk 0:00:28]}  Rxd4 {[%clk 0:00:32]} 28. Rxd4 {[%clk 0:00:25]}  Qxe5+ {[%clk 0:00:32]} 29. Qg3 {[%clk 0:00:25]}  Qxd4 {[%clk 0:00:32]} 30. Qxc7 {[%clk 0:00:25]}  Qxh4+ {[%clk 0:00:20]} 31. Kg2 {[%clk 0:00:25]}  Qxb4 {[%clk 0:00:21]} 32. Qe7 {[%clk 0:00:21]}  Qb2+ {[%clk 0:00:19]} 33. Kg3 {[%clk 0:00:20]}  Qf6 {[%clk 0:00:17]} 34. Qxf6 {[%clk 0:00:19]}  Rxf6 {[%clk 0:00:18]} 35. c6 {[%clk 0:00:18]}  Rf7 {[%clk 0:00:18]} 36. Bc8 {[%clk 0:00:16]}  Rc7 {[%clk 0:00:17]} 37. Bd7 {[%clk 0:00:16]}  Kg8 {[%clk 0:00:17]} 38. Kf4 {[%clk 0:00:12]}  Kf7 {[%clk 0:00:17]} 39. Ke5 {[%clk 0:00:12]}  Ke7 {[%clk 0:00:17]} 40. Bf5 {[%clk 0:00:10]}  Rxc6 {[%clk 0:00:15]} 41. Bxh7 {[%clk 0:00:10]}  Rc5+ {[%clk 0:00:11]} 42. Kd4 {[%clk 0:00:10]}  Ra5 {[%clk 0:00:12]} 43. Bb1 {[%clk 0:00:10]}  Kf6 {[%clk 0:00:11]} 44. f4 {[%clk 0:00:09]}  Ra4+ {[%clk 0:00:10]} 45. Ke3 {[%clk 0:00:09]}  Ke7 {[%clk 0:00:10]} 46. f5 {[%clk 0:00:04]}  Kf6 {[%clk 0:00:10]} 47. Kd2 {[%clk 0:00:05]}  Ke5 {[%clk 0:00:09]} 48. Kc3 {[%clk 0:00:05]}  Rf4 {[%clk 0:00:09]} 0-1


[Site "https://www.chess.com"]

[Event "Titled Tuesday Blitz October 12 2021"]
[White "Bluebaum, Matthias"]
[Black "Van Foreest, Jorden"]
[WhiteFideId "24651516"]
[BlackFideId "1039784"]
[WhiteElo "2681"]
[BlackElo "2600"]
[Result "0-1"]
[Round "10"]
[TimeControl "180+1"]
[Date "2021.10.12"]
[WhiteClock "0:00:01"]
[BlackClock "0:00:10"]

1. d4 {[%clk 0:03:00]}  a6 {[%clk 0:03:00]} 2. g3 {[%clk 0:02:50]}  Nf6 {[%clk 0:02:55]} 3. Bg2 {[%clk 0:02:51]}  d5 {[%clk 0:02:54]} 4. Nf3 {[%clk 0:02:47]}  Bf5 {[%clk 0:02:49]} 5. c4 {[%clk 0:02:45]}  c6 {[%clk 0:02:49]} 6. Nc3 {[%clk 0:02:44]}  e6 {[%clk 0:02:48]} 7. Nh4 {[%clk 0:02:34]}  Bg4 {[%clk 0:02:46]} 8. h3 {[%clk 0:02:31]}  Bh5 {[%clk 0:02:46]} 9. Qb3 {[%clk 0:02:31]}  Ra7 {[%clk 0:02:43]} 10. a4 {[%clk 0:02:28]}  a5 {[%clk 0:02:34]} 11. O-O {[%clk 0:02:04]}  Be7 {[%clk 0:02:26]} 12. cxd5 {[%clk 0:02:02]}  Nxd5 {[%clk 0:02:20]} 13. Nf3 {[%clk 0:01:54]}  O-O {[%clk 0:02:15]} 14. e4 {[%clk 0:01:50]}  Nb4 {[%clk 0:02:14]} 15. Be3 {[%clk 0:01:50]}  Ra8 {[%clk 0:02:11]} 16. Rad1 {[%clk 0:01:47]}  Nd7 {[%clk 0:01:34]} 17. d5 {[%clk 0:01:47]}  exd5 {[%clk 0:01:31]} 18. exd5 {[%clk 0:01:48]}  Bg6 {[%clk 0:01:08]} 19. dxc6 {[%clk 0:01:37]}  bxc6 {[%clk 0:01:09]} 20. Nd4 {[%clk 0:01:33]}  Nc5 {[%clk 0:00:58]} 21. Qa3 {[%clk 0:01:23]}  Ncd3 {[%clk 0:00:50]} 22. Qb3 {[%clk 0:01:16]}  Rb8 {[%clk 0:00:48]} 23. Rd2 {[%clk 0:00:50]}  Bf6 {[%clk 0:00:43]} 24. Qc4 {[%clk 0:00:41]}  Ne5 {[%clk 0:00:36]} 25. Qc5 {[%clk 0:00:37]}  Ned3 {[%clk 0:00:33]} 26. Qc4 {[%clk 0:00:37]}  Ne5 {[%clk 0:00:33]} 27. Qc5 {[%clk 0:00:38]}  Nbd3 {[%clk 0:00:32]} 28. Qa7 {[%clk 0:00:23]}  Ra8 {[%clk 0:00:32]} 29. Qb7 {[%clk 0:00:23]}  Rb8 {[%clk 0:00:30]} 30. Qa7 {[%clk 0:00:22]}  Qc8 {[%clk 0:00:30]} 31. Qxa5 {[%clk 0:00:09]}  Nc4 {[%clk 0:00:29]} 32. Qa7 {[%clk 0:00:08]}  Ra8 {[%clk 0:00:27]} 33. Nxc6 {[%clk 0:00:03]}  Rxa7 {[%clk 0:00:26]} 34. Nxa7 {[%clk 0:00:04]}  Qa6 {[%clk 0:00:24]} 35. Re2 {[%clk 0:00:05]}  Nxe3 {[%clk 0:00:22]} 36. Nab5 {[%clk 0:00:05]}  Nxf1 {[%clk 0:00:21]} 37. Nd5 {[%clk 0:00:05]}  Qxa4 {[%clk 0:00:17]} 38. Nbc7 {[%clk 0:00:05]}  Qd1 {[%clk 0:00:16]} 39. Bxf1 {[%clk 0:00:05]}  Nc1 {[%clk 0:00:14]} 40. Re3 {[%clk 0:00:01]}  Bd4 {[%clk 0:00:13]} 41. Ra3 {[%clk 0:00:01]}  Ne2+ {[%clk 0:00:12]} 42. Kg2 {[%clk 0:00:01]}  Be4+ {[%clk 0:00:12]} 43. f3 {[%clk 0:00:02]}  Bxd5 {[%clk 0:00:12]} 44. Nxd5 {[%clk 0:00:03]}  Qd2 {[%clk 0:00:12]} 45. Ne7+ {[%clk 0:00:03]}  Kh8 {[%clk 0:00:12]} 46. h4 {[%clk 0:00:03]}  Nf4+ {[%clk 0:00:11]} 47. Kh1 {[%clk 0:00:03]}  Qf2 {[%clk 0:00:12]} 48. Ng6+ {[%clk 0:00:02]}  fxg6 {[%clk 0:00:11]} 49. Bg2 {[%clk 0:00:01]}  Qg1# {[%clk 0:00:10]} 0-1


[Site "https://www.chess.com"]

[Event "Titled Tuesday Blitz October 12 2021"]
[White "Djordjevic, Vuk"]
[Black "Silva Lucena, Cristian"]
[WhiteFideId "902098"]
[BlackFideId "2232588"]
[WhiteElo "2463"]
[BlackElo "2223"]
[Result "1-0"]
[Round "10"]
[TimeControl "180+1"]
[Date "2021.10.12"]
[WhiteClock "0:00:38"]
[BlackClock "0:00:09"]

1. d4 {[%clk 0:03:00]}  Nf6 {[%clk 0:02:58]} 2. Bg5 {[%clk 0:03:01]}  e6 {[%clk 0:02:58]} 3. e4 {[%clk 0:03:01]}  h6 {[%clk 0:02:58]} 4. Bxf6 {[%clk 0:03:01]}  Qxf6 {[%clk 0:02:58]} 5. c3 {[%clk 0:03:02]}  d5 {[%clk 0:02:58]} 6. Bd3 {[%clk 0:03:02]}  c5 {[%clk 0:02:57]} 7. Nf3 {[%clk 0:03:01]}  cxd4 {[%clk 0:02:56]} 8. Nxd4 {[%clk 0:02:56]}  Nc6 {[%clk 0:02:54]} 9. exd5 {[%clk 0:02:50]}  exd5 {[%clk 0:02:52]} 10. O-O {[%clk 0:02:49]}  Be7 {[%clk 0:02:50]} 11. Nb5 {[%clk 0:02:48]}  O-O {[%clk 0:02:16]} 12. Nc7 {[%clk 0:02:48]}  Be6 {[%clk 0:02:12]} 13. Nxa8 {[%clk 0:02:45]}  Rxa8 {[%clk 0:02:13]} 14. Qf3 {[%clk 0:02:36]}  Qxf3 {[%clk 0:02:10]} 15. gxf3 {[%clk 0:02:37]}  Ne5 {[%clk 0:02:10]} 16. Be2 {[%clk 0:02:37]}  Ng6 {[%clk 0:02:10]} 17. Re1 {[%clk 0:02:32]}  Nf4 {[%clk 0:02:09]} 18. Bf1 {[%clk 0:02:31]}  Bc5 {[%clk 0:02:06]} 19. Nd2 {[%clk 0:02:30]}  Bb6 {[%clk 0:02:02]} 20. Nb3 {[%clk 0:02:29]}  g5 {[%clk 0:01:59]} 21. Nd4 {[%clk 0:02:27]}  Kg7 {[%clk 0:01:58]} 22. a4 {[%clk 0:02:25]}  a6 {[%clk 0:01:53]} 23. a5 {[%clk 0:02:20]}  Ba7 {[%clk 0:01:53]} 24. Ra4 {[%clk 0:02:16]}  Rc8 {[%clk 0:01:52]} 25. Rb4 {[%clk 0:02:07]}  Rc7 {[%clk 0:01:50]} 26. Rd1 {[%clk 0:02:01]}  Kf6 {[%clk 0:01:46]} 27. Ne2 {[%clk 0:01:52]}  Ng6 {[%clk 0:01:33]} 28. Ng3 {[%clk 0:01:42]}  Nh4 {[%clk 0:01:22]} 29. Be2 {[%clk 0:01:39]}  Bc5 {[%clk 0:01:20]} 30. Ra4 {[%clk 0:01:39]}  Ng6 {[%clk 0:01:06]} 31. Nh5+ {[%clk 0:01:35]}  Ke7 {[%clk 0:01:05]} 32. f4 {[%clk 0:01:30]}  Nh4 {[%clk 0:00:48]} 33. Re1 {[%clk 0:01:06]}  Kd6 {[%clk 0:00:41]} 34. Nf6 {[%clk 0:01:00]}  Rc8 {[%clk 0:00:38]} 35. fxg5 {[%clk 0:00:57]}  hxg5 {[%clk 0:00:37]} 36. Rd1 {[%clk 0:00:53]}  Kc6 {[%clk 0:00:24]} 37. Bg4 {[%clk 0:00:48]}  Bxg4 {[%clk 0:00:20]} 38. Rxg4 {[%clk 0:00:47]}  Kb5 {[%clk 0:00:14]} 39. Rxd5 {[%clk 0:00:45]}  Kc6 {[%clk 0:00:11]} 40. Rc4 {[%clk 0:00:43]}  b5 {[%clk 0:00:09]} 41. Rcxc5+ {[%clk 0:00:38]} 1-0


[Site "https://www.chess.com"]

[Event "Titled Tuesday Blitz October 12 2021"]
[White "Hansen, Eric"]
[Black "Vokhidov, Shamsiddin"]
[WhiteFideId "2606771"]
[BlackFideId "14204223"]
[WhiteElo "2568"]
[BlackElo "2616"]
[Result "1-0"]
[Round "10"]
[TimeControl "180+1"]
[Date "2021.10.12"]
[WhiteClock "0:00:04"]
[BlackClock "0:00:08"]

1. Nf3 {[%clk 0:03:00]}  c5 {[%clk 0:03:00]} 2. g3 {[%clk 0:02:58]}  g6 {[%clk 0:03:00]} 3. Bg2 {[%clk 0:02:58]}  Bg7 {[%clk 0:03:01]} 4. O-O {[%clk 0:02:58]}  Nc6 {[%clk 0:03:02]} 5. c4 {[%clk 0:02:56]}  Nf6 {[%clk 0:03:01]} 6. Nc3 {[%clk 0:02:52]}  d5 {[%clk 0:03:01]} 7. cxd5 {[%clk 0:02:51]}  Nxd5 {[%clk 0:03:02]} 8. Qb3 {[%clk 0:02:51]}  Nb6 {[%clk 0:02:57]} 9. d3 {[%clk 0:02:45]}  O-O {[%clk 0:02:55]} 10. Be3 {[%clk 0:02:39]}  Nd4 {[%clk 0:02:48]} 11. Bxd4 {[%clk 0:02:40]}  cxd4 {[%clk 0:02:49]} 12. Ne4 {[%clk 0:02:34]}  Be6 {[%clk 0:02:47]} 13. Qb5 {[%clk 0:02:34]}  Bd5 {[%clk 0:02:44]} 14. Rfc1 {[%clk 0:02:34]}  Bc6 {[%clk 0:02:37]} 15. Rxc6 {[%clk 0:02:12]}  bxc6 {[%clk 0:02:36]} 16. Qxc6 {[%clk 0:02:13]}  Rc8 {[%clk 0:02:36]} 17. Qb5 {[%clk 0:02:13]}  Qd7 {[%clk 0:02:34]} 18. a4 {[%clk 0:01:58]}  Rc2 {[%clk 0:02:30]} 19. Qb3 {[%clk 0:01:52]}  Rfc8 {[%clk 0:02:25]} 20. a5 {[%clk 0:01:48]}  Nd5 {[%clk 0:02:17]} 21. Bf1 {[%clk 0:01:27]}  e6 {[%clk 0:02:00]} 22. Ned2 {[%clk 0:01:25]}  Rc1 {[%clk 0:01:49]} 23. Rxc1 {[%clk 0:01:25]}  Rxc1 {[%clk 0:01:50]} 24. Kg2 {[%clk 0:01:10]}  Qc7 {[%clk 0:01:45]} 25. Nc4 {[%clk 0:01:08]}  Bf8 {[%clk 0:01:28]} 26. Nxd4 {[%clk 0:01:01]}  Bb4 {[%clk 0:01:28]} 27. e4 {[%clk 0:00:44]}  Qc5 {[%clk 0:01:01]} 28. Nc2 {[%clk 0:00:21]}  Bxa5 {[%clk 0:00:43]} 29. d4 {[%clk 0:00:15]}  Qc6 {[%clk 0:00:38]} 30. exd5 {[%clk 0:00:13]}  Qxd5+ {[%clk 0:00:37]} 31. f3 {[%clk 0:00:13]}  Bb6 {[%clk 0:00:32]} 32. Qd3 {[%clk 0:00:11]}  Qg5 {[%clk 0:00:21]} 33. N4e3 {[%clk 0:00:06]}  Rb1 {[%clk 0:00:21]} 34. Qc3 {[%clk 0:00:05]}  h5 {[%clk 0:00:19]} 35. h4 {[%clk 0:00:05]}  Qf6 {[%clk 0:00:17]} 36. Bc4 {[%clk 0:00:04]}  Bc7 {[%clk 0:00:16]} 37. Ba2 {[%clk 0:00:04]}  Rc1 {[%clk 0:00:14]} 38. Qxc7 {[%clk 0:00:04]}  Kg7 {[%clk 0:00:08]} 39. Qc3 {[%clk 0:00:04]}  g5 {[%clk 0:00:08]} 40. Qd2 {[%clk 0:00:04]} 1-0


[Site "https://www.chess.com"]